[Event "Titled Tuesday Blitz July 25 Late 2023"]
[White "Cnejev, Vladimir-Alexandru"]
[Black "Rasulov, Vugar"]
[WhiteFideId "1260898"]
[BlackFideId "13402390"]
[WhiteElo "2540"]
[BlackElo "2878"]
[Result "1/2-1/2"]
[Round "3"]
[TimeControl "180+2"]
[Date "2023.07.25"]
[WhiteClock "0:00:12"]
[BlackClock "0:00:20"]
[Board "34"]

1. e4 {[%clk 0:02:58]}  c5 {[%clk 0:03:00]} 2. Nf3 {[%clk 0:02:58]}  Nc6 {[%clk 0:03:00]} 3. Bb5 {[%clk 0:02:56]}  e6 {[%clk 0:02:59]} 4. Bxc6 {[%clk 0:02:54]}  bxc6 {[%clk 0:02:59]} 5. d3 {[%clk 0:02:55]}  Ne7 {[%clk 0:02:59]} 6. h4 {[%clk 0:02:54]}  d6 {[%clk 0:02:58]} 7. h5 {[%clk 0:02:54]}  h6 {[%clk 0:02:55]} 8. O-O {[%clk 0:02:54]}  e5 {[%clk 0:02:55]} 9. Nh2 {[%clk 0:02:54]}  g5 {[%clk 0:02:48]} 10. hxg6 {[%clk 0:02:39]}  Nxg6 {[%clk 0:02:48]} 11. Qh5 {[%clk 0:02:32]}  Qh4 {[%clk 0:02:42]} 12. Qxh4 {[%clk 0:02:30]}  Nxh4 {[%clk 0:02:43]} 13. g3 {[%clk 0:02:28]}  Ng6 {[%clk 0:02:32]} 14. f4 {[%clk 0:02:27]}  exf4 {[%clk 0:02:25]} 15. gxf4 {[%clk 0:02:28]}  Rg8 {[%clk 0:02:23]} 16. Kh1 {[%clk 0:02:15]}  Rb8 {[%clk 0:02:15]} 17. Nc3 {[%clk 0:02:13]}  Nh4 {[%clk 0:02:13]} 18. Rg1 {[%clk 0:02:02]}  Rxg1+ {[%clk 0:02:12]} 19. Kxg1 {[%clk 0:02:03]}  Bg7 {[%clk 0:02:12]} 20. Kf2 {[%clk 0:02:00]}  Ng6 {[%clk 0:02:09]} 21. Nf3 {[%clk 0:02:00]}  h5 {[%clk 0:02:00]} 22. e5 {[%clk 0:01:20]}  dxe5 {[%clk 0:01:46]} 23. fxe5 {[%clk 0:01:21]}  Nxe5 {[%clk 0:01:45]} 24. Bf4 {[%clk 0:01:21]}  Rxb2 {[%clk 0:01:29]} 25. Bxe5 {[%clk 0:01:10]}  Rxc2+ {[%clk 0:01:29]} 26. Ne2 {[%clk 0:01:10]}  Bxe5 {[%clk 0:01:19]} 27. Nxe5 {[%clk 0:01:11]}  f6 {[%clk 0:01:19]} 28. Nf3 {[%clk 0:01:01]}  Bg4 {[%clk 0:01:14]} 29. a4 {[%clk 0:00:51]}  c4 {[%clk 0:00:55]} 30. Nd4 {[%clk 0:00:30]}  Rb2 {[%clk 0:00:52]} 31. dxc4 {[%clk 0:00:30]}  c5 {[%clk 0:00:47]} 32. Nf3 {[%clk 0:00:30]}  Rc2 {[%clk 0:00:45]} 33. Rc1 {[%clk 0:00:29]}  Ra2 {[%clk 0:00:44]} 34. Ke3 {[%clk 0:00:16]}  Rxa4 {[%clk 0:00:44]} 35. Rc3 {[%clk 0:00:14]}  a5 {[%clk 0:00:38]} 36. Ng3 {[%clk 0:00:14]}  f5 {[%clk 0:00:26]} 37. Kf4 {[%clk 0:00:13]}  Rb4 {[%clk 0:00:21]} 38. Nxf5 {[%clk 0:00:12]}  a4 {[%clk 0:00:19]} 39. Ne5 {[%clk 0:00:07]}  Rb3 {[%clk 0:00:15]} 40. Rxb3 {[%clk 0:00:06]}  axb3 {[%clk 0:00:16]} 41. Nd3 {[%clk 0:00:06]}  Be2 {[%clk 0:00:13]} 42. Nb2 {[%clk 0:00:06]}  Kd7 {[%clk 0:00:13]} 43. Ng3 {[%clk 0:00:03]}  Bg4 {[%clk 0:00:11]} 44. Kg5 {[%clk 0:00:01]}  Ke6 {[%clk 0:00:11]} 45. Nxh5 {[%clk 0:00:02]}  Bxh5 {[%clk 0:00:12]} 46. Kxh5 {[%clk 0:00:03]}  Kf5 {[%clk 0:00:12]} 47. Kh4 {[%clk 0:00:02]}  Ke4 {[%clk 0:00:12]} 48. Kg3 {[%clk 0:00:03]}  Kd4 {[%clk 0:00:12]} 49. Kf3 {[%clk 0:00:03]}  Kc3 {[%clk 0:00:13]} 50. Nd1+ {[%clk 0:00:03]}  Kd2 {[%clk 0:00:09]} 51. Nb2 {[%clk 0:00:02]}  Kc3 {[%clk 0:00:10]} 52. Nd1+ {[%clk 0:00:02]}  Kc2 {[%clk 0:00:08]} 53. Ke2 {[%clk 0:00:03]}  b2 {[%clk 0:00:06]} 54. Nxb2 {[%clk 0:00:03]}  Kxb2 {[%clk 0:00:07]} 55. Kd3 {[%clk 0:00:03]}  Kb3 {[%clk 0:00:08]} 56. Kd2 {[%clk 0:00:03]}  Kb4 {[%clk 0:00:08]} 57. Kd3 {[%clk 0:00:03]}  Ka3 {[%clk 0:00:08]} 58. Kd2 {[%clk 0:00:04]}  Kb2 {[%clk 0:00:08]} 59. Kd3 {[%clk 0:00:05]}  Kb3 {[%clk 0:00:09]} 60. Kd2 {[%clk 0:00:05]}  Kxc4 {[%clk 0:00:09]} 61. Kc2 {[%clk 0:00:05]}  Kb4 {[%clk 0:00:10]} 62. Kb2 {[%clk 0:00:06]}  Kc4 {[%clk 0:00:11]} 63. Kc2 {[%clk 0:00:07]}  Kd4 {[%clk 0:00:11]} 64. Kd2 {[%clk 0:00:07]}  c4 {[%clk 0:00:12]} 65. Kc2 {[%clk 0:00:08]}  Kc5 {[%clk 0:00:12]} 66. Kc3 {[%clk 0:00:07]}  Kb5 {[%clk 0:00:13]} 67. Kc2 {[%clk 0:00:08]}  Kb4 {[%clk 0:00:14]} 68. Kb2 {[%clk 0:00:08]}  c3+ {[%clk 0:00:14]} 69. Kc2 {[%clk 0:00:09]}  Kc4 {[%clk 0:00:15]} 70. Kc1 {[%clk 0:00:09]}  Kb3 {[%clk 0:00:15]} 71. Kb1 {[%clk 0:00:09]}  Kb4 {[%clk 0:00:16]} 72. Kc1 {[%clk 0:00:09]}  Kc4 {[%clk 0:00:17]} 73. Kc2 {[%clk 0:00:09]}  Kd4 {[%clk 0:00:17]} 74. Kc1 {[%clk 0:00:10]}  Kc5 {[%clk 0:00:17]} 75. Kc2 {[%clk 0:00:10]}  Kc4 {[%clk 0:00:18]} 76. Kc1 {[%clk 0:00:11]}  Kd3 {[%clk 0:00:18]} 77. Kd1 {[%clk 0:00:11]}  Kd4 {[%clk 0:00:19]} 78. Kc2 {[%clk 0:00:12]}  Kc4 {[%clk 0:00:20]} 1/2-1/2


[Site "https://www.chess.com"]

[Event "Titled Tuesday Blitz July 25 Late 2023"]
[White "Pniaczek, Marek"]
[Black "Bacrot, Etienne"]
[WhiteFideId "21800421"]
[BlackFideId "605506"]
[WhiteElo "2487"]
[BlackElo "2875"]
[Result "0-1"]
[Round "3"]
[TimeControl "180+2"]
[Date "2023.07.25"]
[WhiteClock "0:00:12"]
[BlackClock "0:02:15"]
[Board "36"]

1. e4 {[%clk 0:03:00]}  c5 {[%clk 0:03:00]} 2. Nf3 {[%clk 0:03:00]}  d6 {[%clk 0:03:01]} 3. Bb5+ {[%clk 0:02:58]}  Nc6 {[%clk 0:03:00]} 4. O-O {[%clk 0:02:56]}  Bd7 {[%clk 0:03:00]} 5. Re1 {[%clk 0:02:54]}  a6 {[%clk 0:03:00]} 6. Bf1 {[%clk 0:02:54]}  g6 {[%clk 0:03:00]} 7. c3 {[%clk 0:02:53]}  Bg7 {[%clk 0:03:00]} 8. d4 {[%clk 0:02:53]}  Nf6 {[%clk 0:03:00]} 9. h3 {[%clk 0:02:43]}  O-O {[%clk 0:02:57]} 10. Bg5 {[%clk 0:02:26]}  h6 {[%clk 0:02:35]} 11. Bf4 {[%clk 0:02:22]}  Qb6 {[%clk 0:02:33]} 12. Qd2 {[%clk 0:02:13]}  g5 {[%clk 0:02:31]} 13. Bh2 {[%clk 0:01:45]}  cxd4 {[%clk 0:02:30]} 14. cxd4 {[%clk 0:01:44]}  g4 {[%clk 0:02:31]} 15. hxg4 {[%clk 0:01:40]}  Bxg4 {[%clk 0:02:31]} 16. e5 {[%clk 0:01:08]}  Nd5 {[%clk 0:02:31]} 17. Bc4 {[%clk 0:00:59]}  e6 {[%clk 0:02:25]} 18. exd6 {[%clk 0:00:20]}  Bxf3 {[%clk 0:02:24]} 19. gxf3 {[%clk 0:00:20]}  Nxd4 {[%clk 0:02:24]} 20. Bxd5 {[%clk 0:00:20]}  exd5 {[%clk 0:02:23]} 21. Kg2 {[%clk 0:00:16]}  Kh8 {[%clk 0:02:18]} 22. Nc3 {[%clk 0:00:16]}  Rg8 {[%clk 0:02:19]} 23. Nxd5 {[%clk 0:00:16]}  Qc6 {[%clk 0:02:16]} 24. Ne7 {[%clk 0:00:14]}  Qxf3+ {[%clk 0:02:16]} 25. Kf1 {[%clk 0:00:13]}  Qh1+ {[%clk 0:02:14]} 26. Bg1 {[%clk 0:00:12]}  Qh3# {[%clk 0:02:15]} 0-1


[Site "https://www.chess.com"]

[Event "Titled Tuesday Blitz July 25 Late 2023"]
[White "Dwilewicz, Katarzyna"]
[Black "Nguyen, Ngoc Truong Son"]
[WhiteFideId "1148486"]
[BlackFideId "12401110"]
[WhiteElo "2412"]
[BlackElo "2866"]
[Result "0-1"]
[Round "3"]
[TimeControl "180+2"]
[Date "2023.07.25"]
[WhiteClock "0:00:04"]
[BlackClock "0:00:10"]
[Board "38"]

1. e4 {[%clk 0:03:00]}  d6 {[%clk 0:02:59]} 2. d4 {[%clk 0:02:59]}  g6 {[%clk 0:02:59]} 3. Nc3 {[%clk 0:02:57]}  Bg7 {[%clk 0:02:59]} 4. Be3 {[%clk 0:02:55]}  a6 {[%clk 0:02:59]} 5. Qd2 {[%clk 0:02:53]}  b5 {[%clk 0:02:57]} 6. f3 {[%clk 0:02:52]}  Nd7 {[%clk 0:02:57]} 7. g4 {[%clk 0:02:50]}  Nb6 {[%clk 0:02:52]} 8. h4 {[%clk 0:02:46]}  h5 {[%clk 0:02:51]} 9. g5 {[%clk 0:02:44]}  e6 {[%clk 0:02:51]} 10. Bd3 {[%clk 0:02:42]}  Ne7 {[%clk 0:02:50]} 11. f4 {[%clk 0:02:42]}  d5 {[%clk 0:02:44]} 12. e5 {[%clk 0:02:39]}  b4 {[%clk 0:02:42]} 13. Nce2 {[%clk 0:02:37]}  a5 {[%clk 0:02:42]} 14. a3 {[%clk 0:02:34]}  Nc4 {[%clk 0:02:32]} 15. Bxc4 {[%clk 0:02:31]}  dxc4 {[%clk 0:02:33]} 16. axb4 {[%clk 0:02:25]}  Bb7 {[%clk 0:02:33]} 17. Rh3 {[%clk 0:02:22]}  a4 {[%clk 0:02:10]} 18. Nf3 {[%clk 0:02:14]}  O-O {[%clk 0:02:09]} 19. Kf2 {[%clk 0:02:12]}  Qd7 {[%clk 0:02:04]} 20. Nc3 {[%clk 0:02:06]}  Nd5 {[%clk 0:01:58]} 21. Nxd5 {[%clk 0:02:05]}  Qxd5 {[%clk 0:01:54]} 22. c3 {[%clk 0:02:03]}  Rfb8 {[%clk 0:01:23]} 23. Rg3 {[%clk 0:01:58]}  Bf8 {[%clk 0:01:22]} 24. Qe2 {[%clk 0:01:49]}  Qd7 {[%clk 0:01:10]} 25. Nd2 {[%clk 0:01:42]}  Be7 {[%clk 0:00:35]} 26. Rgg1 {[%clk 0:01:05]}  Bc6 {[%clk 0:00:27]} 27. Rg3 {[%clk 0:01:02]}  Rb7 {[%clk 0:00:22]} 28. Rgg1 {[%clk 0:01:01]}  Rab8 {[%clk 0:00:21]} 29. Rg3 {[%clk 0:00:58]}  Bxb4 {[%clk 0:00:20]} 30. cxb4 {[%clk 0:00:57]}  Rxb4 {[%clk 0:00:21]} 31. Rgg1 {[%clk 0:00:48]}  Qd5 {[%clk 0:00:18]} 32. Qf3 {[%clk 0:00:43]}  Rxb2 {[%clk 0:00:17]} 33. Qxd5 {[%clk 0:00:41]}  exd5 {[%clk 0:00:16]} 34. Rgc1 {[%clk 0:00:25]}  R8b3 {[%clk 0:00:15]} 35. Rab1 {[%clk 0:00:20]}  Bd7 {[%clk 0:00:10]} 36. Rxb2 {[%clk 0:00:20]}  Rxb2 {[%clk 0:00:10]} 37. Ke1 {[%clk 0:00:20]}  a3 {[%clk 0:00:10]} 38. Ra1 {[%clk 0:00:20]}  a2 {[%clk 0:00:11]} 39. Kd1 {[%clk 0:00:20]}  c3 {[%clk 0:00:10]} 40. Kc1 {[%clk 0:00:18]}  Bf5 {[%clk 0:00:10]} 41. Rxa2 {[%clk 0:00:05]}  Rxa2 {[%clk 0:00:10]} 42. Nb3 {[%clk 0:00:05]}  Rb2 {[%clk 0:00:10]} 43. Nc5 {[%clk 0:00:04]}  Rb1# {[%clk 0:00:10]} 0-1


[Site "https://www.chess.com"]

[Event "Titled Tuesday Blitz July 25 Late 2023"]
[White "Slovineanu, Viacheslav"]
[Black "Erdogmus, Yagiz Kaan"]
[WhiteFideId "13900510"]
[BlackFideId "44599790"]
[WhiteElo "2380"]
[BlackElo "2866"]
[Result "1-0"]
[Round "3"]
[TimeControl "180+2"]
[Date "2023.07.25"]
[WhiteClock "0:00:03"]
[BlackClock "0:00:03"]
[Board "39"]

1. d4 {[%clk 0:02:54]}  Nf6 {[%clk 0:02:55]} 2. Nf3 {[%clk 0:02:54]}  e6 {[%clk 0:02:54]} 3. c4 {[%clk 0:02:53]}  b6 {[%clk 0:02:51]} 4. e3 {[%clk 0:02:53]}  Bb7 {[%clk 0:02:43]} 5. Bd3 {[%clk 0:02:53]}  d5 {[%clk 0:02:39]} 6. b3 {[%clk 0:02:52]}  Nbd7 {[%clk 0:02:39]} 7. O-O {[%clk 0:02:51]}  Bd6 {[%clk 0:02:39]} 8. Nc3 {[%clk 0:02:51]}  O-O {[%clk 0:02:37]} 9. Bb2 {[%clk 0:02:51]}  a6 {[%clk 0:02:31]} 10. Rc1 {[%clk 0:02:50]}  Qe7 {[%clk 0:02:31]} 11. a4 {[%clk 0:02:49]}  dxc4 {[%clk 0:02:27]} 12. bxc4 {[%clk 0:02:47]}  e5 {[%clk 0:02:26]} 13. Nd2 {[%clk 0:02:44]}  e4 {[%clk 0:02:13]} 14. Be2 {[%clk 0:02:18]}  g6 {[%clk 0:02:03]} 15. Re1 {[%clk 0:02:18]}  h5 {[%clk 0:02:02]} 16. f4 {[%clk 0:02:02]}  exf3 {[%clk 0:02:02]} 17. Bxf3 {[%clk 0:02:02]}  Ng4 {[%clk 0:01:38]} 18. Bxg4 {[%clk 0:01:52]}  hxg4 {[%clk 0:01:35]} 19. Qxg4 {[%clk 0:01:51]}  Nf6 {[%clk 0:01:26]} 20. Qg5 {[%clk 0:01:51]}  Bc8 {[%clk 0:01:10]} 21. Nf3 {[%clk 0:01:43]}  Bg4 {[%clk 0:00:55]} 22. e4 {[%clk 0:00:39]}  Bxf3 {[%clk 0:00:54]} 23. gxf3 {[%clk 0:00:39]}  Qe6 {[%clk 0:00:36]} 24. e5 {[%clk 0:00:35]}  Nh7 {[%clk 0:00:36]} 25. Qg4 {[%clk 0:00:35]}  f5 {[%clk 0:00:32]} 26. Qg3 {[%clk 0:00:29]}  Be7 {[%clk 0:00:28]} 27. Nd5 {[%clk 0:00:26]}  Bg5 {[%clk 0:00:22]} 28. Nxc7 {[%clk 0:00:18]}  Qe7 {[%clk 0:00:16]} 29. Nxa8 {[%clk 0:00:18]}  Bh4 {[%clk 0:00:16]} 30. Qg2 {[%clk 0:00:18]}  Bxe1 {[%clk 0:00:16]} 31. Rxe1 {[%clk 0:00:17]}  Rxa8 {[%clk 0:00:16]} 32. Qxg6+ {[%clk 0:00:15]}  Kh8 {[%clk 0:00:16]} 33. Kh1 {[%clk 0:00:15]}  Rg8 {[%clk 0:00:15]} 34. Qxf5 {[%clk 0:00:15]}  Qg7 {[%clk 0:00:16]} 35. Qg4 {[%clk 0:00:14]}  Qh6 {[%clk 0:00:15]} 36. Qe4 {[%clk 0:00:11]}  Qg5 {[%clk 0:00:14]} 37. f4 {[%clk 0:00:10]}  Qh4 {[%clk 0:00:14]} 38. d5 {[%clk 0:00:09]}  Qf2 {[%clk 0:00:12]} 39. e6+ {[%clk 0:00:08]}  Rg7 {[%clk 0:00:10]} 40. Bxg7+ {[%clk 0:00:08]}  Kxg7 {[%clk 0:00:11]} 41. e7 {[%clk 0:00:09]}  Nf6 {[%clk 0:00:11]} 42. Qe5 {[%clk 0:00:08]}  Qf3+ {[%clk 0:00:11]} 43. Kg1 {[%clk 0:00:09]}  Qg4+ {[%clk 0:00:08]} 44. Kf2 {[%clk 0:00:09]}  Qh4+ {[%clk 0:00:09]} 45. Ke2 {[%clk 0:00:09]}  Kf7 {[%clk 0:00:08]} 46. Qe6+ {[%clk 0:00:07]}  Ke8 {[%clk 0:00:08]} 47. Kd3 {[%clk 0:00:07]}  Qh7+ {[%clk 0:00:06]} 48. f5 {[%clk 0:00:07]}  Qh3+ {[%clk 0:00:06]} 49. Re3 {[%clk 0:00:07]}  Qf1+ {[%clk 0:00:06]} 50. Kd4 {[%clk 0:00:06]}  Qa1+ {[%clk 0:00:03]} 51. Kd3 {[%clk 0:00:05]}  Qd1+ {[%clk 0:00:03]} 52. Kc3 {[%clk 0:00:06]}  Qc1+ {[%clk 0:00:04]} 53. Kd3 {[%clk 0:00:03]}  Qd1+ {[%clk 0:00:04]} 54. Kc3 {[%clk 0:00:03]}  Qc1+ {[%clk 0:00:04]} 55. Kd3 {[%clk 0:00:03]}  Qf1+ {[%clk 0:00:02]} 56. Re2 {[%clk 0:00:03]}  Qd1+ {[%clk 0:00:02]} 57. Ke3 {[%clk 0:00:03]}  Qg1+ {[%clk 0:00:02]} 58. Kd2 {[%clk 0:00:03]}  Qd4+ {[%clk 0:00:02]} 59. Ke1 {[%clk 0:00:02]}  Qh4+ {[%clk 0:00:02]} 60. Kd1 {[%clk 0:00:02]}  Qd4+ {[%clk 0:00:02]} 61. Rd2 {[%clk 0:00:03]}  Qg1+ {[%clk 0:00:02]} 62. Kc2 {[%clk 0:00:03]}  Qa1 {[%clk 0:00:02]} 63. d6 {[%clk 0:00:02]}  Qa2+ {[%clk 0:00:02]} 64. Kd1 {[%clk 0:00:03]}  Qxa4+ {[%clk 0:00:02]} 65. Ke1 {[%clk 0:00:03]}  Qa1+ {[%clk 0:00:02]} 66. Ke2 {[%clk 0:00:03]}  Nd7 {[%clk 0:00:02]} 67. Qg8+ {[%clk 0:00:02]}  Nf8 {[%clk 0:00:02]} 68. Qxf8+ {[%clk 0:00:03]}  Kd7 {[%clk 0:00:03]} 69. e8=Q# {[%clk 0:00:03]} 1-0


[Site "https://www.chess.com"]

[Event "Titled Tuesday Blitz July 25 Late 2023"]
[White "Ashraf, Artin"]
[Black "Andrews, Todd"]
[WhiteFideId "22514805"]
[BlackFideId "2012456"]
[WhiteElo "2831"]
[BlackElo "2373"]
[Result "1-0"]
[Round "3"]
[TimeControl "180+2"]
[Date "2023.07.25"]
[WhiteClock "0:01:46"]
[BlackClock "0:00:55"]
[Board "41"]

1. d4 {[%clk 0:03:00]}  Nf6 {[%clk 0:02:59]} 2. Nf3 {[%clk 0:02:59]}  g6 {[%clk 0:02:58]} 3. Bf4 {[%clk 0:02:59]}  Bg7 {[%clk 0:02:58]} 4. e3 {[%clk 0:02:59]}  d6 {[%clk 0:02:56]} 5. h3 {[%clk 0:02:58]}  O-O {[%clk 0:02:56]} 6. Be2 {[%clk 0:02:57]}  b6 {[%clk 0:02:57]} 7. O-O {[%clk 0:02:56]}  Bb7 {[%clk 0:02:57]} 8. c4 {[%clk 0:02:55]}  Nbd7 {[%clk 0:02:57]} 9. Nc3 {[%clk 0:02:54]}  c5 {[%clk 0:02:55]} 10. d5 {[%clk 0:02:52]}  a6 {[%clk 0:02:56]} 11. e4 {[%clk 0:02:50]}  b5 {[%clk 0:02:40]} 12. cxb5 {[%clk 0:02:48]}  axb5 {[%clk 0:02:41]} 13. Bxb5 {[%clk 0:02:48]}  Qa5 {[%clk 0:02:41]} 14. a4 {[%clk 0:02:49]}  Qb4 {[%clk 0:02:32]} 15. Qe2 {[%clk 0:02:39]}  Nb6 {[%clk 0:02:03]} 16. Rfb1 {[%clk 0:02:22]}  Nfxd5 {[%clk 0:01:40]} 17. Nxd5 {[%clk 0:02:05]}  Nxd5 {[%clk 0:01:35]} 18. Bd2 {[%clk 0:02:04]}  Nf4 {[%clk 0:01:12]} 19. Bxf4 {[%clk 0:01:59]}  Bxe4 {[%clk 0:01:03]} 20. Re1 {[%clk 0:01:54]}  d5 {[%clk 0:01:00]} 21. Be5 {[%clk 0:01:48]}  Bxe5 {[%clk 0:00:57]} 22. Nxe5 {[%clk 0:01:48]}  Qxb2 {[%clk 0:00:55]} 23. Qxb2 {[%clk 0:01:46]} 1-0


[Site "https://www.chess.com"]

[Event "Titled Tuesday Blitz July 25 Late 2023"]
[White "Kushko, Dmitriy"]
[Black "Barwinska, Ewa"]
[WhiteFideId "14162261"]
[BlackFideId "21833761"]
[WhiteElo "2823"]
[BlackElo "2315"]
[Result "1-0"]
[Round "3"]
[TimeControl "180+2"]
[Date "2023.07.25"]
[WhiteClock "0:01:37"]
[BlackClock "0:00:00"]
[Board "43"]

1. e4 {[%clk 0:03:00]}  c5 {[%clk 0:02:58]} 2. Nf3 {[%clk 0:03:00]}  d6 {[%clk 0:02:58]} 3. Bb5+ {[%clk 0:03:01]}  Bd7 {[%clk 0:02:57]} 4. Bxd7+ {[%clk 0:03:00]}  Qxd7 {[%clk 0:02:58]} 5. O-O {[%clk 0:03:00]}  Nf6 {[%clk 0:02:58]} 6. Qe2 {[%clk 0:02:59]}  Nc6 {[%clk 0:02:57]} 7. c3 {[%clk 0:02:59]}  e5 {[%clk 0:02:46]} 8. Rd1 {[%clk 0:02:55]}  Be7 {[%clk 0:02:35]} 9. d4 {[%clk 0:02:55]}  cxd4 {[%clk 0:02:22]} 10. cxd4 {[%clk 0:02:56]}  exd4 {[%clk 0:02:22]} 11. Nxd4 {[%clk 0:02:56]}  Nxd4 {[%clk 0:02:20]} 12. Rxd4 {[%clk 0:02:57]}  O-O {[%clk 0:02:16]} 13. Nc3 {[%clk 0:02:57]}  Qe6 {[%clk 0:01:51]} 14. Bf4 {[%clk 0:02:56]}  Rfd8 {[%clk 0:01:44]} 15. Rad1 {[%clk 0:02:56]}  Rac8 {[%clk 0:01:20]} 16. h3 {[%clk 0:02:54]}  a6 {[%clk 0:01:20]} 17. Qd3 {[%clk 0:02:53]}  Rc6 {[%clk 0:00:56]} 18. e5 {[%clk 0:02:41]}  Ne8 {[%clk 0:00:56]} 19. Ne4 {[%clk 0:02:41]}  Qxa2 {[%clk 0:00:20]} 20. exd6 {[%clk 0:02:38]}  Bf6 {[%clk 0:00:20]} 21. d7 {[%clk 0:02:29]}  Bxd4 {[%clk 0:00:13]} 22. dxe8=Q+ {[%clk 0:02:07]}  Rxe8 {[%clk 0:00:13]} 23. Qxd4 {[%clk 0:02:08]}  h6 {[%clk 0:00:07]} 24. Be5 {[%clk 0:01:51]}  Rce6 {[%clk 0:00:02]} 25. Nc3 {[%clk 0:01:37]}  Qb3 {[%clk 0:00:00]} 26. Bxg7 {[%clk 0:01:37]} 1-0


[Site "https://www.chess.com"]

[Event "Titled Tuesday Blitz July 25 Late 2023"]
[White "Khanin, Semen"]
[Black "Boder, Jan"]
[WhiteFideId "4111990"]
[BlackFideId "16243226"]
[WhiteElo "2809"]
[BlackElo "2309"]
[Result "1-0"]
[Round "3"]
[TimeControl "180+2"]
[Date "2023.07.25"]
[WhiteClock "0:00:39"]
[BlackClock "0:00:00"]
[Board "45"]

1. e4 {[%clk 0:03:00]}  e5 {[%clk 0:02:59]} 2. Nf3 {[%clk 0:03:00]}  Nc6 {[%clk 0:03:00]} 3. Bb5 {[%clk 0:03:00]}  a6 {[%clk 0:03:00]} 4. Ba4 {[%clk 0:03:01]}  Nf6 {[%clk 0:03:00]} 5. O-O {[%clk 0:03:00]}  Be7 {[%clk 0:03:00]} 6. Re1 {[%clk 0:03:00]}  b5 {[%clk 0:03:00]} 7. Bb3 {[%clk 0:03:00]}  O-O {[%clk 0:02:59]} 8. a4 {[%clk 0:02:58]}  b4 {[%clk 0:02:44]} 9. a5 {[%clk 0:02:56]}  d5 {[%clk 0:02:37]} 10. exd5 {[%clk 0:02:39]}  Nxd5 {[%clk 0:02:38]} 11. d3 {[%clk 0:02:23]}  Bg4 {[%clk 0:01:41]} 12. h3 {[%clk 0:02:22]}  Bh5 {[%clk 0:01:41]} 13. g4 {[%clk 0:02:22]}  Bg6 {[%clk 0:01:41]} 14. Nxe5 {[%clk 0:02:22]}  Nxe5 {[%clk 0:01:41]} 15. Rxe5 {[%clk 0:02:22]}  c6 {[%clk 0:01:41]} 16. Qf3 {[%clk 0:02:19]}  Bd6 {[%clk 0:01:39]} 17. Re1 {[%clk 0:02:11]}  Qh4 {[%clk 0:01:34]} 18. Nd2 {[%clk 0:01:43]}  Nf4 {[%clk 0:01:33]} 19. Nc4 {[%clk 0:01:38]}  Nxh3+ {[%clk 0:00:33]} 20. Kg2 {[%clk 0:01:38]}  Nxf2 {[%clk 0:00:15]} 21. Nxd6 {[%clk 0:01:32]}  Nxg4 {[%clk 0:00:12]} 22. Bf4 {[%clk 0:01:22]}  Nf6 {[%clk 0:00:04]} 23. Rh1 {[%clk 0:01:19]}  Qg4+ {[%clk 0:00:04]} 24. Qxg4 {[%clk 0:01:19]}  Nxg4 {[%clk 0:00:04]} 25. Rae1 {[%clk 0:01:16]}  Rad8 {[%clk 0:00:04]} 26. Re7 {[%clk 0:01:13]}  h5 {[%clk 0:00:03]} 27. Rhe1 {[%clk 0:01:04]}  h4 {[%clk 0:00:03]} 28. Kh3 {[%clk 0:01:01]}  Nf6 {[%clk 0:00:01]} 29. Kxh4 {[%clk 0:01:00]}  Nd5 {[%clk 0:00:01]} 30. Bxd5 {[%clk 0:00:59]}  cxd5 {[%clk 0:00:02]} 31. Kg3 {[%clk 0:00:57]}  b3 {[%clk 0:00:02]} 32. cxb3 {[%clk 0:00:53]}  Bxd3 {[%clk 0:00:03]} 33. Rd1 {[%clk 0:00:47]}  Bc2 {[%clk 0:00:03]} 34. Rxd5 {[%clk 0:00:47]}  Bxb3 {[%clk 0:00:04]} 35. Rc5 {[%clk 0:00:42]}  g5 {[%clk 0:00:03]} 36. Rxg5+ {[%clk 0:00:41]}  Kh7 {[%clk 0:00:04]} 37. Re2 {[%clk 0:00:39]}  Bd1 {[%clk 0:00:00]} 38. Rh2+ {[%clk 0:00:39]} 1-0


[Site "https://www.chess.com"]

[Event "Titled Tuesday Blitz July 25 Late 2023"]
[White "Djordjevic, Dejan N"]
[Black "Leitao, Rafael"]
[WhiteFideId "913316"]
[BlackFideId "2101246"]
[WhiteElo "2112"]
[BlackElo "2798"]
[Result "0-1"]
[Round "3"]
[TimeControl "180+2"]
[Date "2023.07.25"]
[WhiteClock "0:00:00"]
[BlackClock "0:00:33"]
[Board "46"]

1. e4 {[%clk 0:03:00]}  e5 {[%clk 0:02:57]} 2. Nf3 {[%clk 0:03:00]}  Nc6 {[%clk 0:02:58]} 3. Bc4 {[%clk 0:03:00]}  Nf6 {[%clk 0:02:57]} 4. d3 {[%clk 0:03:00]}  Be7 {[%clk 0:02:56]} 5. O-O {[%clk 0:03:00]}  O-O {[%clk 0:02:56]} 6. Re1 {[%clk 0:02:59]}  d6 {[%clk 0:02:56]} 7. c3 {[%clk 0:02:58]}  Na5 {[%clk 0:02:47]} 8. Bb5 {[%clk 0:02:58]}  c5 {[%clk 0:02:47]} 9. Ba4 {[%clk 0:02:58]}  Nc6 {[%clk 0:02:45]} 10. a3 {[%clk 0:02:58]}  a6 {[%clk 0:02:32]} 11. b4 {[%clk 0:02:57]}  b5 {[%clk 0:02:29]} 12. Bc2 {[%clk 0:02:56]}  h6 {[%clk 0:02:27]} 13. h3 {[%clk 0:02:50]}  Be6 {[%clk 0:02:24]} 14. Be3 {[%clk 0:02:42]}  a5 {[%clk 0:02:17]} 15. bxc5 {[%clk 0:02:35]}  dxc5 {[%clk 0:02:18]} 16. Nbd2 {[%clk 0:02:23]}  Qc7 {[%clk 0:02:16]} 17. Qb1 {[%clk 0:02:20]}  Rab8 {[%clk 0:02:13]} 18. Rc1 {[%clk 0:02:10]}  Rfd8 {[%clk 0:02:08]} 19. Nf1 {[%clk 0:01:51]}  b4 {[%clk 0:01:59]} 20. axb4 {[%clk 0:01:48]}  cxb4 {[%clk 0:01:54]} 21. c4 {[%clk 0:01:47]}  Nd4 {[%clk 0:01:44]} 22. Bxd4 {[%clk 0:01:08]}  exd4 {[%clk 0:01:45]} 23. Ba4 {[%clk 0:01:05]}  Nd7 {[%clk 0:01:41]} 24. Nxd4 {[%clk 0:01:04]}  Nc5 {[%clk 0:01:32]} 25. Nxe6 {[%clk 0:01:04]}  fxe6 {[%clk 0:01:29]} 26. Rd1 {[%clk 0:00:53]}  Bf6 {[%clk 0:01:26]} 27. Ra2 {[%clk 0:00:52]}  b3 {[%clk 0:01:21]} 28. Ra3 {[%clk 0:00:51]}  Rb4 {[%clk 0:01:18]} 29. Bb5 {[%clk 0:00:51]}  Bd4 {[%clk 0:01:10]} 30. Nd2 {[%clk 0:00:43]}  a4 {[%clk 0:01:09]} 31. Nf3 {[%clk 0:00:42]}  e5 {[%clk 0:01:00]} 32. Nxd4 {[%clk 0:00:15]}  Rxd4 {[%clk 0:00:59]} 33. Rd2 {[%clk 0:00:11]}  Qd6 {[%clk 0:00:56]} 34. Qd1 {[%clk 0:00:07]}  Nxe4 {[%clk 0:00:42]} 35. Bxa4 {[%clk 0:00:02]}  Nxd2 {[%clk 0:00:40]} 36. Qxd2 {[%clk 0:00:02]}  b2 {[%clk 0:00:39]} 37. Bc2 {[%clk 0:00:02]}  b1=Q+ {[%clk 0:00:38]} 38. Bxb1 {[%clk 0:00:02]}  Rxb1+ {[%clk 0:00:38]} 39. Kh2 {[%clk 0:00:03]}  e4+ {[%clk 0:00:35]} 40. g3 {[%clk 0:00:03]}  Rxd3 {[%clk 0:00:34]} 41. Ra8+ {[%clk 0:00:00]}  Kh7 {[%clk 0:00:33]} 0-1


[Site "https://www.chess.com"]